fUSD/lending_fUSD_20260427
["ID","MTS","AMOUNT","RATE_DAILY","PERIOD"]
[421234604,1777284651210,-1000.0,0.00032157,2]
[421234605,1777284651219,-1000.0,0.000322,2]
[421234606,1777284651229,-1000.0,0.00032217,2]
[421234607,1777284651238,-150.0,0.00032219,2]
[421234608,1777284651247,-1000.0,0.00032242,2]
[421234609,1777284651256,-1000.0,0.00032249,2]
[421234610,1777284651265,-500.0,0.0003225,45]
[421234611,1777284651274,-500.0,0.0003225,45]
[421234612,1777284651283,-1000.0,0.00032271,2]
[421234613,1777284651293,-409.62335716,0.00032282,14]
[421234614,1777284651302,-1000.0,0.00032286,2]
[421234615,1777284651311,-1000.0,0.00032293,2]
[421234616,1777284651320,-1000.0,0.00032295,2]
[421234617,1777284651330,-1000.0,0.00032295,2]
[421234618,1777284651339,-681.0,0.00032296,30]
[421234619,1777284651348,-158.0,0.00032296,30]
[421234620,1777284651357,-501.0,0.00032296,30]
[421234621,1777284651367,-266.0,0.00032297,30]
[421234622,1777284651375,-218.0,0.00032297,30]
[421234623,1777284651385,-1970.0,0.00032297,30]
[421234624,1777284651394,-369.0,0.00032297,30]
[421234625,1777284651404,-209.0,0.00032297,30]
[421234626,1777284651413,-480.0,0.00032297,30]
[421234627,1777284651422,-669.0,0.00032297,30]
[421234628,1777284651431,-1000.0,0.00032323,2]
[421234629,1777284651440,-1000.0,0.00032341,2]
[421234630,1777284651450,-1000.0,0.00032343,2]
[421234631,1777284651459,-600.0,0.00032352,3]
[421234632,1777284651468,-621.0,0.00032352,14]
[421234633,1777284651477,-1000.0,0.00032366,2]
[421234634,1777284651486,-150.0,0.00032369,2]
[421234635,1777284651496,-1000.0,0.00032371,2]
[421234636,1777284651505,-1000.0,0.00032377,2]
[421234637,1777284651514,-1000.0,0.0003238,2]
[421234638,1777284651524,-1000.0,0.00032395,2]
[421234639,1777284651533,-174.0,0.000324,2]
[421234640,1777284651542,-1000.0,0.00032405,2]
[421234641,1777284651551,-1000.0,0.00032409,2]
[421234642,1777284651560,-1000.0,0.00032422,2]
[421234643,1777284651570,-806.6580288,0.00032426,2]
[421234644,1777284651580,-177.67430597,0.00032438,30]
[421234645,1777284651589,-263.37902068,0.00032438,30]
[421234646,1777284651599,-300.0,0.00032438,30]
[421234647,1777284651608,-1000.0,0.00032475,2]
[421234648,1777284651619,-1000.0,0.00032476,2]
[421234649,1777284651628,-1000.0,0.00032483,2]
[421234650,1777284651638,-1000.0,0.000325,2]
[421234651,1777284651648,-1000.0,0.00032504,2]
[421234652,1777284651657,-261.02364959,0.00032515,2]
[421234653,1777284651666,-1000.0,0.00032519,2]
[421234654,1777284651675,-1000.0,0.00032521,2]
[421234655,1777284651684,-1000.0,0.00032533,2]
[421234656,1777284651693,-1000.0,0.00032563,2]
[421234657,1777284651702,-1000.0,0.00032564,2]
[421234658,1777284651711,-1000.0,0.00032589,2]
[421234659,1777284651721,-1000.0,0.00032592,2]
[421234660,1777284651730,-1000.0,0.00032592,2]
[421234661,1777284651739,-1000.0,0.00032592,2]
[421234662,1777284651749,-1000.0,0.00032592,2]
[421234663,1777284651759,-1000.0,0.00032592,2]
[421234664,1777284651768,-1000.0,0.00032592,2]
[421234665,1777284651778,-1000.0,0.00032593,2]
[421234666,1777284651787,-1000.0,0.00032598,2]
[421234667,1777284651796,-1000.0,0.00032624,2]
[421234668,1777284651805,-1000.0,0.00032628,2]
[421234669,1777284651815,-1000.0,0.00032637,2]
[421234670,1777284651824,-1000.0,0.00032643,2]
[421234671,1777284651833,-1000.0,0.00032652,2]
[421234672,1777284651843,-1000.0,0.00032653,2]
[421234673,1777284651852,-1000.0,0.00032653,2]
[421234674,1777284651861,-1000.0,0.00032664,2]
[421234675,1777284651870,-1000.0,0.00032675,2]
[421234676,1777284651880,-1000.0,0.00032683,2]
[421234677,1777284651889,-1000.0,0.00032694,2]
[421234678,1777284651898,-1000.0,0.00032698,2]
[421234679,1777284651907,-1000.0,0.000327,2]
[421234680,1777284651916,-1000.0,0.000327,2]
[421234681,1777284651925,-1000.0,0.00032709,2]
[421234682,1777284651935,-1000.0,0.00032719,2]
[421234683,1777284651943,-1000.0,0.00032727,2]
[421234684,1777284651952,-1000.0,0.00032735,2]
[421234685,1777284651962,-1000.0,0.00032737,2]
[421234686,1777284651971,-1000.0,0.0003274,2]
[421234687,1777284651981,-1000.0,0.00032745,2]
[421234688,1777284651995,-1000.0,0.00032751,2]
[421234689,1777284652004,-1000.0,0.00032752,2]
[421234690,1777284652013,-1000.0,0.00032754,2]
[421234691,1777284652023,-1000.0,0.00032756,2]
[421234692,1777284652032,-1000.0,0.0003276,2]
[421234693,1777284652042,-1000.0,0.00032763,2]
[421234694,1777284652052,-1000.0,0.00032771,2]
[421234695,1777284652061,-1000.0,0.00032773,2]
[421234696,1777284652070,-1000.0,0.00032794,2]
[421234697,1777284652080,-1000.0,0.00032797,2]
[421234698,1777284652090,-1000.0,0.00032807,2]
[421234699,1777284652099,-1000.0,0.00032809,2]
[421234700,1777284652110,-1000.0,0.00032826,2]
[421234701,1777284652120,-395.0,0.00032829,7]
[421234702,1777284652130,-1000.0,0.0003283,2]
[421234703,1777284652139,-1000.0,0.00032833,2]
[421234704,1777284652149,-1000.0,0.00032855,2]
[421234705,1777284652158,-1000.0,0.00032859,2]
[421234706,1777284652168,-1629.44022255,0.0003287,2]
[421234707,1777284652178,-161.0,0.0003287,60]
[421234708,1777284652187,-1000.0,0.00032873,2]
[421234709,1777284652197,-500.0,0.00032876,30]
[421234710,1777284652206,-500.0,0.00032876,90]
[421234711,1777284652216,-240.47489857,0.00032876,14]
[421234712,1777284652226,-500.0,0.00032876,30]
[421234713,1777284652240,-500.0,0.00032876,2]
[421234714,1777284652252,-1702.31,0.00032876,10]
[421234715,1777284652273,-500.0,0.00032876,14]
[421234716,1777284652294,-500.0,0.00032876,60]
[421234717,1777284652317,-500.0,0.00032876,90]
[421234718,1777284652337,-500.0,0.00032876,7]
[421234719,1777284652359,-674.83,0.00032876,30]
[421234720,1777284652379,-500.0,0.00032876,60]
[421234721,1777284652395,-500.0,0.00032876,12]
[421234722,1777284652404,-500.0,0.00032876,30]
[421234723,1777284652414,-500.0,0.00032876,60]
[421234724,1777284652423,-888.26,0.00032876,7]
[421234725,1777284652433,-500.0,0.00032876,14]
[421234726,1777284652442,-500.0,0.00032876,2]
[421234727,1777284652452,-500.0,0.00032876,21]
[421234728,1777284652462,-500.0,0.00032876,30]
[421234729,1777284652471,-218.35534593,0.00032876,10]
[421234730,1777284652481,-177.12053806,0.00032876,60]
[421234731,1777284652491,-500.0,0.00032876,75]
[421234732,1777284652501,-247.12876199,0.00032876,90]
[421234733,1777284652510,-500.0,0.00032876,14]
[421234734,1777284652520,-500.0,0.00032876,30]
[421234735,1777284652529,-632.1,0.00032876,60]
[421234736,1777284652539,-2546.28,0.00032876,2]
[421234737,1777284652548,-2294.32,0.00032876,31]
[421234738,1777284652559,-662.27,0.00032876,7]
[421234739,1777284652569,-150.0,0.00032876,7]
[421234740,1777284652579,-2179.71,0.00032876,7]
[421234741,1777284652589,-150.0,0.00032876,7]
[421234742,1777284652598,-2715.71,0.00032876,30]
[421234743,1777284652608,-169.362,0.00032876,7]
[421234744,1777284652618,-252.01239478,0.00032876,15]
[421234745,1777284652628,-500.0,0.00032876,30]
[421234746,1777284652638,-1878.05,0.00032876,30]
[421234747,1777284652648,-500.0,0.00032876,30]
[421234748,1777284652657,-425.15,0.00032876,2]
[421234749,1777284652667,-10248.1,0.00032876,14]
[421234750,1777284652677,-11089.58,0.00032876,11]
[421234751,1777284652687,-250.0,0.00032876,115]
[421234752,1777284652697,-250.0,0.00032876,115]
[421234753,1777284652707,-250.0,0.00032876,115]
[421234754,1777284652716,-500.0,0.00032876,30]
[421234755,1777284652726,-250.0,0.00032876,115]
[421234756,1777284652736,-250.0,0.00032876,115]
[421234757,1777284652746,-283.36,0.00032876,26]
[421234758,1777284652755,-17258.6071367,0.00032876,2]
[421234759,1777284652765,-2000.0,0.00032876,2]
[421234760,1777284652775,-202.31932073,0.00032876,90]
[421234761,1777284652785,-200.0,0.00032876,2]
[421234762,1777284652794,-513.0,0.00032876,30]
[421234763,1777284652804,-3511.0,0.00032876,30]
[421234764,1777284652814,-500.0,0.00032876,30]
[421234765,1777284652823,-200.0,0.00032876,20]
[421234766,1777284652835,-190.99610724,0.00032876,2]
[421234767,1777284652844,-158.67,0.00032877,2]
[421234768,1777284652855,-158.67,0.00032877,2]
[421234769,1777284652864,-158.67,0.00032877,2]
[421234770,1777284652874,-158.67,0.00032877,2]
[421234771,1777284652884,-158.67,0.00032877,2]
[421234772,1777284652893,-158.67,0.00032877,2]
[421234773,1777284652903,-158.67,0.00032877,2]
[421234774,1777284652912,-158.67,0.00032877,2]
[421234775,1777284652922,-158.67,0.00032877,2]
[421234776,1777284652932,-158.67,0.00032877,2]
[421234777,1777284652941,-1000.0,0.00032877,10]
[421234778,1777284652951,-1000.0,0.00032877,10]
[421234779,1777284652960,-1000.0,0.00032877,10]
[421234780,1777284652969,-1000.0,0.00032877,10]
[421234781,1777284652979,-1000.0,0.00032877,10]
[421234782,1777284652988,-1000.0,0.00032877,10]
[421234783,1777284652997,-1000.0,0.00032877,10]
[421234784,1777284653006,-1000.0,0.00032877,10]
[421234785,1777284653016,-1000.0,0.00032877,10]
[421234786,1777284653026,-1000.0,0.00032877,10]
[421234787,1777284653035,-1000.0,0.00032877,10]
[421234788,1777284653045,-1000.0,0.00032877,10]
[421234789,1777284653054,-1000.0,0.00032877,10]
[421234790,1777284653069,-1000.0,0.00032877,10]
[421234791,1777284653079,-1000.0,0.00032877,10]
[421234792,1777284653089,-1000.0,0.00032877,10]
[421234793,1777284653098,-1000.0,0.00032877,10]
[421234794,1777284653108,-1000.0,0.00032877,10]
[421234795,1777284653118,-1000.0,0.00032877,10]
[421234796,1777284653128,-1000.0,0.00032877,10]
[421234797,1777284653137,-1000.0,0.00032877,10]
[421234798,1777284653147,-1000.0,0.00032877,10]
[421234799,1777284653156,-1000.0,0.00032877,10]
[421234800,1777284653166,-1000.0,0.00032877,10]
[421234801,1777284653176,-1000.0,0.00032877,10]
[421234802,1777284653185,-1000.0,0.00032877,10]
[421234803,1777284653195,-1000.0,0.00032877,10]
[421234804,1777284653204,-1000.0,0.00032877,10]
[421234805,1777284653217,-1000.0,0.00032877,10]
[421234806,1777284653226,-1000.0,0.00032877,10]
[421234807,1777284653236,-1000.0,0.00032877,120]
[421234808,1777284653245,-1000.0,0.00032877,120]
[421234809,1777284653255,-1000.0,0.00032877,120]
[421234810,1777284653264,-1000.0,0.00032877,120]
[421234811,1777284653273,-150.781,0.00032877,2]
[421234812,1777284653283,-150.781,0.00032877,2]
[421234813,1777284653292,-150.781,0.00032877,2]
[421234814,1777284653301,-150.781,0.00032877,2]
[421234815,1777284653310,-150.781,0.00032877,2]
[421234816,1777284653320,-150.781,0.00032877,2]
[421234817,1777284653329,-1000.0,0.00032877,120]
[421234818,1777284653338,-1000.0,0.00032877,120]
[421234819,1777284653348,-150.0,0.00032877,30]
[421234820,1777284653357,-150.0,0.00032877,30]
[421234821,1777284653367,-150.0,0.00032877,30]
[421234822,1777284653376,-150.0,0.00032877,30]
[421234823,1777284653386,-234.0,0.00032877,30]
[421234824,1777284653396,-3148.0,0.00032877,120]
[421234825,1777284653405,-3025.0,0.00032877,120]
[421234826,1777284653414,-157.94286924,0.00032877,12]
[421234827,1777284653424,-183.98578422,0.00032877,120]
[421234828,1777284653434,-3437.0436638,0.00032877,120]
[421234829,1777284653443,-309.91050308,0.00032877,120]
[421234830,1777284653453,-1787.53,0.00032877,7]
[421234831,1777284653462,-161.0,0.0003289,60]
[421234832,1777284653471,-687.82,0.000329,120]
[421234833,1777284653481,-194.5,0.000329,120]
[421234834,1777284653490,-1000.0,0.00033,5]
[421234835,1777284653500,-160.0,0.00033,30]
[421234836,1777284653510,-160.0,0.00033,30]
[421234837,1777284653520,-160.0,0.00033,7]
[421234838,1777284653530,-569.183006,0.00033,14]
[421234839,1777284653541,-160.0,0.00033,10]
[421234840,1777284653550,-160.0,0.00033,120]
[421234841,1777284653559,-160.0,0.00033,7]
[421234842,1777284653568,-160.0,0.00033,10]
[421234843,1777284653578,-160.0,0.00033,120]
[421234844,1777284653587,-458.36,0.00033022,30]
[421234845,1777284653596,-497.0,0.00033146,7]
[421234846,1777284653606,-295.90885131,0.00033149,10]
[421234847,1777284653615,-500.0,0.0003315,120]
[421234848,1777284653625,-500.0,0.0003315,120]
[421234849,1777284653634,-500.0,0.0003315,120]
[421234850,1777284653643,-500.0,0.0003315,30]
[421234851,1777284653652,-500.0,0.0003315,90]
[421234852,1777284653662,-500.0,0.0003315,120]
[421234853,1777284653671,-500.0,0.0003315,120]
[421234854,1777284653680,-500.30248743,0.0003315,120]
[421234855,1777284653689,-500.0,0.0003315,120]
[421234856,1777284653698,-500.0,0.0003315,120]
[421234857,1777284653707,-500.0,0.0003315,120]
[421234858,1777284653716,-431.45538798,0.0003315,120]
[421234859,1777284653726,-500.0,0.0003315,120]
[421234860,1777284653735,-500.0,0.0003315,120]
[421234861,1777284653744,-500.0,0.0003315,120]
[421234862,1777284653753,-500.0,0.0003315,120]
[421234863,1777284653762,-500.0,0.0003315,120]
[421234864,1777284653771,-500.0,0.0003315,120]
[421234865,1777284653781,-500.0,0.0003315,120]
[421234866,1777284653790,-500.0,0.0003315,120]
[421234867,1777284653799,-500.0,0.0003315,120]
[421234868,1777284653808,-500.0,0.0003315,120]
[421234869,1777284653817,-500.0,0.0003315,120]
[421234870,1777284653826,-173.68597923,0.0003315,120]
[421234871,1777284653835,-500.0,0.0003315,30]
[421234872,1777284653844,-500.0,0.0003315,120]
[421234873,1777284653853,-500.0,0.0003315,120]
[421234874,1777284653862,-500.0,0.0003315,120]
[421234875,1777284653871,-500.0,0.0003315,120]
[421234876,1777284653881,-500.0,0.0003315,120]
[421234877,1777284653890,-500.0,0.0003315,120]
[421234878,1777284653899,-500.0,0.0003315,120]
[421234879,1777284653908,-628.36535047,0.0003315,120]
[421234880,1777284653917,-500.0,0.0003315,120]
[421234881,1777284653926,-500.0,0.0003315,2]
[421234882,1777284653935,-500.0,0.0003315,120]
[421234883,1777284653945,-500.0,0.0003315,120]
[421234884,1777284653954,-500.0,0.0003315,120]
[421234885,1777284653963,-1702.31,0.0003315,10]
[421234886,1777284653972,-500.0,0.0003315,120]
[421234887,1777284653981,-812.66,0.0003315,120]
[421234888,1777284653989,-500.0,0.0003315,120]
[421234889,1777284653999,-500.0,0.0003315,120]
[421234890,1777284654008,-500.0,0.0003315,120]
[421234891,1777284654017,-809.35,0.0003315,120]
[421234892,1777284654026,-500.0,0.0003315,120]
[421234893,1777284654035,-500.0,0.0003315,120]
[421234894,1777284654044,-500.0,0.0003315,120]
[421234895,1777284654053,-1797.45,0.0003315,120]
[421234896,1777284654063,-2146.06,0.0003315,120]
[421234897,1777284654071,-377.59224556,0.0003315,120]
[421234898,1777284654081,-500.0,0.0003315,120]
[421234899,1777284654090,-500.0,0.0003315,120]
[421234900,1777284654099,-500.0,0.0003315,120]
[421234901,1777284654108,-500.0,0.0003315,120]
[421234902,1777284654118,-500.0,0.0003315,120]
[421234903,1777284654127,-500.0,0.0003315,120]
[421234904,1777284654136,-518.34235546,0.0003315,120]
[421234905,1777284654146,-1868.36,0.0003315,120]
[421234906,1777284654155,-500.0,0.0003315,120]
[421234907,1777284654164,-500.0,0.0003315,120]
[421234908,1777284654173,-1095.11,0.0003315,120]
[421234909,1777284654183,-517.27,0.0003315,120]
[421234910,1777284654192,-500.0,0.0003315,120]
[421234911,1777284654202,-500.0,0.0003315,14]
[421234912,1777284654211,-500.0,0.0003315,120]
[421234913,1777284654220,-914.71,0.0003315,120]
[421234914,1777284654229,-500.0,0.0003315,120]
[421234915,1777284654238,-500.0,0.0003315,120]
[421234916,1777284654248,-500.0,0.0003315,120]
[421234917,1777284654257,-500.0,0.0003315,120]
[421234918,1777284654266,-1040.18,0.0003315,120]
[421234919,1777284654275,-500.0,0.0003315,120]
[421234920,1777284654284,-922.82,0.0003315,120]
[421234921,1777284654293,-500.0,0.0003315,120]
[421234922,1777284654302,-1534.88,0.0003315,120]
[421234923,1777284654311,-500.0,0.0003315,120]
[421234924,1777284654320,-2019.3,0.0003315,120]
[421234925,1777284654329,-1959.72,0.0003315,120]
[421234926,1777284654339,-684.91,0.0003315,120]
[421234927,1777284654347,-500.0,0.0003315,120]
[421234928,1777284654356,-504.65,0.0003315,120]
[421234929,1777284654366,-1158.92,0.0003315,120]
[421234930,1777284654375,-500.0,0.0003315,120]
[421234931,1777284654384,-845.05,0.0003315,120]
[421234932,1777284654393,-500.0,0.0003315,120]
[421234933,1777284654403,-611.32,0.0003315,120]
[421234934,1777284654411,-500.0,0.0003315,60]
[421234935,1777284654421,-1078.05,0.0003315,120]
[421234936,1777284654430,-500.0,0.0003315,120]
[421234937,1777284654439,-1451.78,0.0003315,120]
[421234938,1777284654449,-500.0,0.0003315,120]
[421234939,1777284654459,-1409.52,0.0003315,120]
[421234940,1777284654468,-3193.52,0.0003315,120]
[421234941,1777284654477,-500.0,0.0003315,120]
[421234942,1777284654487,-939.01,0.0003315,120]
[421234943,1777284654496,-500.0,0.0003315,120]
[421234944,1777284654505,-500.0,0.0003315,120]
[421234945,1777284654515,-500.0,0.0003315,120]
[421234946,1777284654524,-500.0,0.0003315,120]
[421234947,1777284654533,-500.0,0.0003315,120]
[421234948,1777284654543,-592.71,0.0003315,120]
[421234949,1777284654553,-634.191912,0.0003315,120]
[421234950,1777284654563,-500.0,0.0003315,120]
[421234951,1777284654572,-857.86,0.0003315,120]
[421234952,1777284654581,-570.2,0.0003315,120]
[421234953,1777284654590,-528.57,0.0003315,120]
[421234954,1777284654600,-500.0,0.0003315,120]
[421234955,1777284654610,-500.0,0.0003315,120]
[421234956,1777284654619,-500.0,0.0003315,120]
[421234957,1777284654628,-696.98,0.0003315,120]
[421234958,1777284654637,-901.05,0.0003315,120]
[421234959,1777284654648,-500.0,0.0003315,120]
[421234960,1777284654657,-500.0,0.0003315,90]
[421234961,1777284654667,-890.08,0.0003315,120]
[421234962,1777284654677,-965.16,0.0003315,120]
[421234963,1777284654686,-500.0,0.0003315,120]
[421234964,1777284654695,-1841.01,0.0003315,120]
[421234965,1777284654705,-500.0,0.0003315,120]
[421234966,1777284654714,-713.6,0.0003315,120]
[421234967,1777284654724,-500.0,0.0003315,120]
[421234968,1777284654897,-500.0,0.0003315,120]
[421234969,1777284654907,-674.4,0.0003315,120]
[421234970,1777284654917,-500.0,0.0003315,120]
[421234971,1777284654926,-500.0,0.0003315,120]
[421234972,1777284654936,-500.0,0.0003315,7]
[421234973,1777284654945,-500.0,0.0003315,120]
[421234974,1777284654955,-1925.72,0.0003315,120]
[421234975,1777284654964,-500.0,0.0003315,120]
[421234976,1777284654974,-931.26,0.0003315,120]
[421234977,1777284654984,-500.0,0.0003315,120]
[421234978,1777284654993,-500.0,0.0003315,120]
[421234979,1777284655002,-500.0,0.0003315,120]
[421234980,1777284655011,-562.79,0.0003315,120]
[421234981,1777284655021,-500.0,0.0003315,120]
[421234982,1777284655030,-157.04151924,0.0003315,120]
[421234983,1777284655040,-500.0,0.0003315,120]
[421234984,1777284655049,-1115.73,0.0003315,120]
[421234985,1777284655058,-500.0,0.0003315,120]
[421234986,1777284655068,-500.0,0.0003315,120]
[421234987,1777284655077,-500.0,0.0003315,120]
[421234988,1777284655087,-1530.22,0.0003315,120]
[421234989,1777284655096,-434.27254573,0.0003315,120]
[421234990,1777284655106,-500.0,0.0003315,120]
[421234991,1777284655115,-924.43,0.0003315,120]
[421234992,1777284655125,-674.83,0.0003315,30]
[421234993,1777284655134,-500.0,0.0003315,60]
[421234994,1777284655144,-500.0,0.0003315,120]
[421234995,1777284655153,-859.63,0.0003315,120]
[421234996,1777284655163,-587.81257111,0.0003315,120]
[421234997,1777284655172,-500.0,0.0003315,120]
[421234998,1777284655182,-524.16,0.0003315,120]
[421234999,1777284655191,-1033.78,0.0003315,120]
[421235000,1777284655201,-1583.18,0.0003315,120]
[421235001,1777284655210,-500.0,0.0003315,120]
[421235002,1777284655220,-500.0,0.0003315,120]
[421235003,1777284655230,-838.77,0.0003315,120]
[421235004,1777284655239,-922.71,0.0003315,120]
[421235005,1777284655248,-500.0,0.0003315,12]
[421235006,1777284655258,-1040.27,0.0003315,120]
[421235007,1777284655268,-500.0,0.0003315,120]
[421235008,1777284655278,-503.60398439,0.0003315,120]
[421235009,1777284655287,-1666.97,0.0003315,120]
[421235010,1777284655297,-323.87891411,0.0003315,120]
[421235011,1777284655306,-500.0,0.0003315,30]
[421235012,1777284655316,-500.0,0.0003315,120]
[421235013,1777284655325,-697.48,0.0003315,120]
[421235014,1777284655335,-500.0,0.0003315,120]
[421235015,1777284655344,-500.0,0.0003315,120]
[421235016,1777284655353,-500.0,0.0003315,120]
[421235017,1777284655363,-738.54,0.0003315,120]
[421235018,1777284655372,-500.0,0.0003315,120]
[421235019,1777284655382,-581.00254869,0.0003315,120]
[421235020,1777284655391,-500.0,0.0003315,60]
[421235021,1777284655401,-500.0,0.0003315,120]
[421235022,1777284655410,-500.0,0.0003315,120]
[421235023,1777284655420,-543.79,0.0003315,120]
[421235024,1777284655429,-891.79,0.0003315,120]
[421235025,1777284655439,-550.36,0.0003315,120]
[421235026,1777284655448,-594.9,0.0003315,120]
[421235027,1777284655458,-500.0,0.0003315,120]
[421235028,1777284655468,-1341.57,0.0003315,120]
[421235029,1777284655477,-500.0,0.0003315,120]
[421235030,1777284655486,-526.16,0.0003315,120]
[421235031,1777284655496,-502.70867801,0.0003315,120]
[421235032,1777284655512,-888.26,0.0003315,7]
[421235033,1777284655521,-1006.51,0.0003315,120]
[421235034,1777284655530,-501.19886456,0.0003315,120]
[421235035,1777284655539,-500.0,0.0003315,14]
[421235036,1777284655549,-2138.74,0.0003315,120]
[421235037,1777284655558,-2588.5,0.0003315,120]
[421235038,1777284655567,-500.0,0.0003315,120]
[421235039,1777284655577,-746.94,0.0003315,120]
[421235040,1777284655586,-500.0,0.0003315,120]
[421235041,1777284655595,-500.0,0.0003315,120]
[421235042,1777284655605,-500.0,0.0003315,120]
[421235043,1777284655615,-1183.4,0.0003315,120]
[421235044,1777284655624,-2360.9,0.0003315,120]
[421235045,1777284655633,-500.0,0.0003315,120]
[421235046,1777284655643,-1598.78,0.0003315,120]
[421235047,1777284655652,-500.0,0.0003315,120]
[421235048,1777284655661,-631.74,0.0003315,120]
[421235049,1777284655671,-500.0,0.0003315,120]
[421235050,1777284655680,-500.0,0.0003315,120]
[421235051,1777284655689,-500.0,0.0003315,120]
[421235052,1777284655699,-766.71,0.0003315,120]
[421235053,1777284655709,-963.0,0.0003315,120]
[421235054,1777284655718,-500.0,0.0003315,120]
[421235055,1777284655727,-500.0,0.0003315,120]
[421235056,1777284655737,-1105.5,0.0003315,120]
[421235057,1777284655746,-522.24,0.0003315,120]
[421235058,1777284655755,-497.29,0.0003315,120]
[421235059,1777284655765,-1402.48,0.0003315,120]
[421235060,1777284655774,-606.18,0.0003315,120]
[421235061,1777284655784,-500.0,0.0003315,120]
[421235062,1777284655793,-500.0,0.0003315,120]
[421235063,1777284655803,-500.0,0.0003315,120]
[421235064,1777284655812,-500.0,0.0003315,120]
[421235065,1777284655822,-500.0,0.0003315,120]
[421235066,1777284655831,-695.74,0.0003315,120]
[421235067,1777284655841,-500.0,0.0003315,120]
[421235068,1777284655850,-500.0,0.0003315,120]
[421235069,1777284655860,-1044.21,0.0003315,120]
[421235070,1777284655869,-931.51,0.0003315,120]
[421235071,1777284655879,-500.0,0.0003315,120]
[421235072,1777284655888,-596.7,0.0003315,120]
[421235073,1777284655897,-534.47,0.0003315,120]
[421235074,1777284655907,-209.07948645,0.0003315,120]
[421235075,1777284655916,-500.0,0.0003315,120]
[421235076,1777284655926,-2254.6,0.0003315,120]
[421235077,1777284655935,-500.0,0.0003315,120]
[421235078,1777284655944,-2255.59,0.0003315,120]
[421235079,1777284655953,-500.0,0.0003315,120]
[421235080,1777284655963,-554.44,0.0003315,120]
[421235081,1777284655973,-765.34,0.0003315,120]
[421235082,1777284655982,-725.3,0.0003315,120]
[421235083,1777284655991,-500.0,0.0003315,120]
[421235084,1777284656000,-600.28,0.0003315,120]
[421235085,1777284656009,-500.0,0.0003315,120]
[421235086,1777284656019,-500.0,0.0003315,120]
[421235087,1777284656028,-500.0,0.0003315,120]
[421235088,1777284656037,-2408.2,0.0003315,120]
[421235089,1777284656047,-500.0,0.0003315,120]
[421235090,1777284656056,-570.89,0.0003315,120]
[421235091,1777284656065,-500.0,0.0003315,120]
[421235092,1777284656074,-415.18392521,0.0003315,120]
[421235093,1777284656083,-752.76,0.0003315,120]
[421235094,1777284656093,-1381.27,0.0003315,120]
[421235095,1777284656102,-500.0,0.0003315,120]
[421235096,1777284656112,-503.35648684,0.0003315,120]
[421235097,1777284656121,-500.0,0.0003315,120]
[421235098,1777284656130,-500.0,0.0003315,120]
[421235099,1777284656139,-500.0,0.0003315,120]
[421235100,1777284656149,-862.26,0.0003315,120]
[421235101,1777284656158,-500.42365622,0.0003315,120]
[421235102,1777284656170,-500.0,0.0003315,120]
[421235103,1777284656179,-506.15,0.0003315,120]